[Event "Schack-SM 2022: Veteran-SM +65"]
[Site "Fyrishov, Idrottsgatan 2, Uppsala, Sweden"]
[Date "2022.07.09"]
[Round "8.3"]
[White "Lagerborg, Krister"]
[Black "Alquist, Erik"]
[Result "1-0"]
[TimeControl "90 minutes for 40 moves + 30 minutes for the rest of the game + 30 seconds per move from move one."]
[WhiteFideId "1712411"]
[BlackFideId "1707701"]
[WhiteElo "2138"]
[BlackElo "1968"]

1. d4 {[%clk 01:30:54]} {[%emt 00:00:05]} Nf6 {[%clk 01:30:31]} {[%emt
00:00:30]} 2. c4 {[%clk 01:31:16]} {[%emt 00:00:08]} e6 {[%clk 01:30:21]}
{[%emt 00:00:41]} 3. Nc3 {[%clk 01:30:58]} {[%emt 00:00:47]} Bb4 {[%clk
01:30:43]} {[%emt 00:00:07]} 4. Qc2 {[%clk 01:29:02]} {[%emt 00:02:26]} O-O
{[%clk 01:30:53]} {[%emt 00:00:20]} 5. a3 {[%clk 01:29:02]} {[%emt 00:00:30]}
Bxc3+ {[%clk 01:31:04]} {[%emt 00:00:19]} 6. Qxc3 {[%clk 01:29:01]} {[%emt
00:00:31]} d5 {[%clk 01:30:57]} {[%emt 00:00:37]} 7. Bg5 {[%clk 01:25:46]}
{[%emt 00:03:45]} c5 {[%clk 01:30:59]} {[%emt 00:00:29]} 8. dxc5 {[%clk
01:23:39]} {[%emt 00:02:37]} d4 {[%clk 01:31:19]} {[%emt 00:00:10]} 9. Qf3
{[%clk 01:22:43]} {[%emt 00:01:25]} Nbd7 {[%clk 01:31:28]} {[%emt 00:00:22]} 10.
Bxf6 {[%clk 01:18:10]} {[%emt 00:05:03]} Nxf6 {[%clk 01:31:35]} {[%emt
00:00:24]} 11. b4 {[%clk 01:15:02]} {[%emt 00:03:38]} e5 {[%clk 01:30:23]}
{[%emt 00:01:42]} 12. e4 {[%clk 01:12:17]} {[%emt 00:03:14]} a5 {[%clk
01:19:20]} {[%emt 00:11:33]} 13. Rb1 {[%clk 01:11:20]} {[%emt 00:01:27]} axb4
{[%clk 01:18:45]} {[%emt 00:01:05]} 14. axb4 {[%clk 01:11:41]} {[%emt
00:00:09]} Bg4 {[%clk 01:12:36]} {[%emt 00:06:39]} 15. Qd3 {[%clk 01:11:52]}
{[%emt 00:00:20]} Qd7 {[%clk 01:12:11]} {[%emt 00:00:55]} 16. f3 {[%clk
01:10:32]} {[%emt 00:01:49]} Nxe4 {[%clk 01:12:02]} {[%emt 00:00:39]} 17. fxe4
{[%clk 01:00:41]} {[%emt 00:10:21]} f5 {[%clk 01:11:58]} {[%emt 00:00:34]} 18.
Qg3 {[%clk 00:58:12]} {[%emt 00:02:58]} fxe4 {[%clk 01:11:06]} {[%emt
00:01:22]} 19. h3 {[%clk 00:52:20]} {[%emt 00:06:21]} Be6 {[%clk 00:58:55]}
{[%emt 00:12:42]} 20. Qxe5 {[%clk 00:43:07]} {[%emt 00:09:43]} Qf7 {[%clk
00:49:09]} {[%emt 00:10:16]} 21. Be2 {[%clk 00:34:37]} {[%emt 00:09:00]} d3
{[%clk 00:46:43]} {[%emt 00:02:56]} 22. Bxd3 {[%clk 00:32:41]} {[%emt
00:02:26]} exd3 {[%clk 00:46:47]} {[%emt 00:00:25]} 23. Nf3 {[%clk 00:32:20]}
{[%emt 00:00:51]} d2+ {[%clk 00:40:49]} {[%emt 00:06:29]} 24. Kf2 {[%clk
00:30:17]} {[%emt 00:02:32]} Bxc4 {[%clk 00:40:01]} {[%emt 00:01:18]} 25. Rhd1
{[%clk 00:28:19]} {[%emt 00:02:28]} Rae8 {[%clk 00:39:36]} {[%emt 00:00:55]} 26.
Qc3 {[%clk 00:27:36]} {[%emt 00:01:13]} Be2 {[%clk 00:27:23]} {[%emt 00:12:43]}
27. Rxd2 {[%clk 00:26:32]} {[%emt 00:01:35]} Bxf3 {[%clk 00:27:37]} {[%emt
00:00:16]} 28. gxf3 {[%clk 00:26:51]} {[%emt 00:00:12]} Qh5 {[%clk 00:27:26]}
{[%emt 00:00:41]} 29. Qc4+ {[%clk 00:26:04]} {[%emt 00:01:16]} Kh8 {[%clk
00:27:31]} {[%emt 00:00:26]} 30. Qg4 {[%clk 00:26:01]} {[%emt 00:00:33]} Qh6
{[%clk 00:26:49]} {[%emt 00:01:12]} 31. Rbd1 {[%clk 00:25:48]} {[%emt
00:00:42]} Qe3+ {[%clk 00:23:53]} {[%emt 00:03:27]} 32. Kg2 {[%clk 00:24:37]}
{[%emt 00:01:41]} Rf4 {[%clk 00:23:43]} {[%emt 00:00:40]} 33. Qg3 {[%clk
00:24:21]} {[%emt 00:00:46]} Ref8 {[%clk 00:13:18]} {[%emt 00:10:55]} 34. Rd3
{[%clk 00:22:17]} {[%emt 00:02:34]} Qe2+ {[%clk 00:12:46]} {[%emt 00:01:02]} 35.
Qf2 {[%clk 00:22:01]} {[%emt 00:00:46]} Qxf2+ {[%clk 00:10:28]} {[%emt
00:02:48]} 36. Kxf2 {[%clk 00:22:24]} {[%emt 00:00:07]} Rxb4 {[%clk 00:10:32]}
{[%emt 00:00:27]} 37. Rd8 {[%clk 00:22:25]} {[%emt 00:00:29]} Kg8 {[%clk
00:08:40]} {[%emt 00:02:22]} 38. Rxf8+ {[%clk 00:22:25]} {[%emt 00:00:31]} Kxf8
{[%clk 00:09:02]} {[%emt 00:00:07]} 39. Rd7 {[%clk 00:22:37]} {[%emt 00:00:17]}
h5 {[%clk 00:03:19]} {[%emt 00:06:14]} 40. Ke3 {[%clk 00:21:30]} {[%emt
00:01:36]} g5 {[%clk 00:01:36]} {[%emt 00:02:13]} 41. Rd5 {[%clk 00:19:38]}
{[%emt 00:02:22]} g4 {[%clk 00:30:19]} {[%emt 00:01:47]} 42. Rxh5 {[%clk
00:49:41]} {[%emt 00:00:28]} Rb3+ {[%clk 00:29:59]} {[%emt 00:00:50]} 43. Ke4
{[%clk 00:49:29]} {[%emt 00:00:41]} gxf3 {[%clk 00:26:05]} {[%emt 00:04:24]} 44.
Rf5+ {[%clk 00:49:51]} {[%emt 00:00:08]} Ke7 {[%clk 00:26:08]} {[%emt
00:00:28]} 45. Rxf3 {[%clk 00:50:13]} {[%emt 00:00:08]} Rb1 {[%clk 00:26:24]}
{[%emt 00:00:13]} 46. Kd5 {[%clk 00:49:31]} {[%emt 00:01:13]} Rd1+ {[%clk
00:25:13]} {[%emt 00:01:41]} 47. Kc4 {[%clk 00:49:41]} {[%emt 00:00:20]} Rc1+
{[%clk 00:24:36]} {[%emt 00:01:07]} 48. Rc3 {[%clk 00:49:51]} {[%emt 00:00:21]}
Rd1 {[%clk 00:23:57]} {[%emt 00:01:09]} 49. Re3+ {[%clk 00:46:16]} {[%emt
00:04:04]} Kf7 {[%clk 00:23:33]} {[%emt 00:00:55]} 50. Re4 {[%clk 00:44:39]}
{[%emt 00:02:06]} Kf6 {[%clk 00:22:04]} {[%emt 00:02:00]} 51. h4 {[%clk
00:43:32]} {[%emt 00:01:37]} Rd7 {[%clk 00:21:53]} {[%emt 00:00:40]} 52. Rd4
{[%clk 00:43:06]} {[%emt 00:00:57]} Rh7 {[%clk 00:20:05]} {[%emt 00:02:18]} 53.
Kb5 {[%clk 00:42:42]} {[%emt 00:00:54]} Ke7 {[%clk 00:18:55]} {[%emt 00:01:40]}
54. Kb6 {[%clk 00:42:32]} {[%emt 00:00:40]} Ke8 {[%clk 00:18:59]} {[%emt
00:00:26]} 55. Rg4 {[%clk 00:41:40]} {[%emt 00:01:21]} Re7 {[%clk 00:15:32]}
{[%emt 00:03:57]} 56. Rg8+ {[%clk 00:39:51]} {[%emt 00:02:19]} Kd7 {[%clk
00:14:02]} {[%emt 00:02:01]} 57. Rb8 {[%clk 00:39:27]} {[%emt 00:00:54]} Re6+
{[%clk 00:13:52]} {[%emt 00:00:40]} 58. Kxb7 {[%clk 00:36:59]} {[%emt
00:02:58]} Rh6 {[%clk 00:13:18]} {[%emt 00:01:03]} 59. Rg8 {[%clk 00:36:12]}
{[%emt 00:01:17]} Rxh4 {[%clk 00:12:46]} {[%emt 00:01:02]} 60. c6 {[%clk
00:35:38]} {[%emt 00:01:04]} Kd6 {[%clk 00:13:05]} {[%emt 00:00:12]} 61. Rg6+
{[%clk 00:34:35]} {[%emt 00:01:33]} Kc5 {[%clk 00:13:00]} {[%emt 00:00:34]} 62.
c7 {[%clk 00:31:16]} {[%emt 00:03:49]} Rb4+ {[%clk 00:13:06]} {[%emt 00:00:24]}
63. Ka7 {[%clk 00:27:59]} {[%emt 00:03:46]} 1-0

[Event "Schack-SM 2022: Veteran-SM +65"]
[Site "Fyrishov, Idrottsgatan 2, Uppsala, Sweden"]
[Date "2022.07.07"]
[Round "6.4"]
[White "Bellon Lopez, Juan Manuel"]
[Black "Carlsson, Ingvar"]
[Result "1-0"]
[TimeControl "90 minutes for 40 moves + 30 minutes for the rest of the game + 30 seconds per move from move one."]
[WhiteTitle "GM"]
[WhiteFideId "2200031"]
[BlackFideId "1702670"]
[WhiteElo "2330"]
[BlackElo "2030"]

1. d4 {[%clk 01:30:58]} Nf6 {[%clk 01:30:50]} {[%emt 00:00:10]} 2. Bg5 {[%clk
01:30:51]} {[%emt 00:00:37]} e6 {[%clk 01:31:04]} {[%emt 00:00:16]} 3. e3
{[%clk 01:30:15]} {[%emt 00:01:05]} h6 {[%clk 01:30:50]} {[%emt 00:00:44]} 4.
Bh4 {[%clk 01:28:13]} {[%emt 00:02:32]} Be7 {[%clk 01:28:47]} {[%emt 00:02:32]}
5. Nd2 {[%clk 01:27:20]} {[%emt 00:01:24]} b6 {[%clk 01:25:04]} {[%emt
00:04:14]} 6. Qf3 {[%clk 01:22:35]} {[%emt 00:05:13]} Nc6 {[%clk 01:24:27]}
{[%emt 00:01:08]} 7. c3 {[%clk 01:22:40]} {[%emt 00:00:25]} Bb7 {[%clk
01:24:22]} {[%emt 00:00:36]} 8. Bxf6 {[%clk 01:20:37]} {[%emt 00:02:33]} Bxf6
{[%clk 01:24:35]} {[%emt 00:00:16]} 9. O-O-O {[%clk 01:18:21]} {[%emt
00:02:46]} Qe7 {[%clk 01:06:16]} {[%emt 00:18:49]} 10. Ne4 {[%clk 01:16:58]}
{[%emt 00:01:53]} O-O-O {[%emt 00:00:23]} 11. Nxf6 {[%emt 00:01:01]} gxf6
{[%clk 01:04:32]} {[%emt 00:00:49]} 12. Qh5 {[%clk 01:16:51]} {[%emt 00:00:37]}
f5 {[%clk 00:57:33]} {[%emt 00:07:29]} 13. Nh3 {[%clk 01:14:54]} {[%emt
00:02:27]} Qf6 {[%clk 00:53:59]} {[%emt 00:04:04]} 14. Be2 {[%clk 01:10:07]}
{[%emt 00:05:17]} Ne7 {[%clk 00:52:16]} {[%emt 00:02:13]} 15. Bf3 {[%clk
01:10:16]} {[%emt 00:00:21]} Bxf3 {[%clk 00:39:00]} {[%emt 00:13:46]} 16. Qxf3
{[%clk 01:10:36]} {[%emt 00:00:10]} d5 {[%clk 00:39:22]} {[%emt 00:00:09]} 17.
Nf4 {[%clk 01:08:59]} {[%emt 00:02:05]} Ng6 {[%clk 00:38:32]} {[%emt 00:01:19]}
18. Nd3 {[%clk 01:05:00]} {[%emt 00:04:30]} Qe7 {[%clk 00:35:29]} {[%emt
00:03:32]} 19. g3 {[%clk 01:02:38]} {[%emt 00:02:52]} Kb8 {[%clk 00:32:53]}
{[%emt 00:03:07]} 20. h4 {[%clk 00:51:11]} {[%emt 00:11:57]} Qe8 {[%clk
00:30:46]} {[%emt 00:02:38]} 21. Kb1 {[%clk 00:47:23]} {[%emt 00:04:18]} Qb5
{[%clk 00:26:25]} {[%emt 00:04:50]} 22. Rd2 {[%clk 00:44:43]} {[%emt 00:03:10]}
Rc8 {[%clk 00:23:12]} {[%emt 00:03:43]} 23. Rc1 {[%clk 00:43:21]} {[%emt
00:01:52]} h5 {[%clk 00:11:57]} {[%emt 00:11:45]} 24. b3 {[%clk 00:41:02]}
{[%emt 00:02:50]} a5 {[%clk 00:09:25]} {[%emt 00:03:02]} 25. Ka1 {[%clk
00:38:23]} {[%emt 00:03:09]} Ka7 {[%clk 00:03:46]} {[%emt 00:06:10]} 26. c4
{[%clk 00:25:18]} {[%emt 00:13:35]} Qd7 {[%clk 00:03:45]} {[%emt 00:00:31]} 27.
c5 {[%clk 00:20:20]} {[%emt 00:05:28]} b5 {[%clk 00:03:52]} {[%emt 00:00:22]}
28. c6 {[%clk 00:17:16]} {[%emt 00:03:35]} Qd6 {[%clk 00:04:16]} {[%emt
00:00:05]} 29. Rc5 {[%clk 00:16:20]} {[%emt 00:01:27]} Rb8 {[%clk 00:03:58]}
{[%emt 00:00:47]} 30. Rdc2 {[%clk 00:15:38]} {[%emt 00:01:13]} Rb6 {[%clk
00:03:22]} {[%emt 00:01:06]} 31. Qe2 {[%clk 00:12:32]} {[%emt 00:03:37]} e5
{[%clk 00:01:56]} {[%emt 00:01:55]} 32. dxe5 {[%clk 00:10:05]} {[%emt
00:02:57]} Nxe5 {[%clk 00:02:17]} {[%emt 00:00:09]} 33. Qd2 {[%clk 00:08:26]}
{[%emt 00:02:10]} Nxc6 {[%clk 00:01:17]} {[%emt 00:01:31]} 34. Nf4 {[%clk
00:08:31]} {[%emt 00:00:24]} d4 {[%clk 00:00:57]} {[%emt 00:00:50]} 35. exd4
{[%clk 00:03:59]} {[%emt 00:05:02]} Nxd4 {[%clk 00:01:07]} {[%emt 00:00:20]} 36.
Qxa5+ {[%clk 00:01:58]} {[%emt 00:02:32]} Kb8 {[%clk 00:01:29]} {[%emt
00:00:08]} 37. R2c3 {[%clk 00:01:10]} {[%emt 00:01:17]} Nxb3+ {[%clk 00:01:42]}
{[%emt 00:00:17]} 38. axb3 {[%clk 00:01:21]} {[%emt 00:00:20]} Ra6 {[%clk
00:02:01]} {[%emt 00:00:11]} 39. Rxb5+ {[%clk 00:01:45]} {[%emt 00:00:06]} Ka7
{[%clk 00:01:32]} {[%emt 00:00:58]} 40. Nd5 {[%clk 00:01:44]} {[%emt 00:00:31]}
Rxa5+ {[%clk 00:01:44]} {[%emt 00:00:19]} 41. Rxa5+ {[%clk 00:02:03]} {[%emt
00:00:11]} Kb8 {[%clk 00:30:09]} {[%emt 00:02:03]} 42. Rb5+ {[%clk 00:30:54]}
{[%emt 00:01:39]} Kc8 {[%clk 00:08:50]} {[%emt 00:21:50]} 43. Rxc7+ {[%clk
00:30:54]} {[%emt 00:00:31]} Qxc7 {[%clk 00:09:01]} {[%emt 00:00:19]} 44. Nxc7
{[%clk 00:31:18]} {[%emt 00:00:06]} Kxc7 {[%clk 00:09:23]} {[%emt 00:00:07]} 45.
Rxf5 {[%clk 00:31:43]} {[%emt 00:00:05]} Rh7 {[%clk 00:09:37]} {[%emt
00:00:16]} 46. Kb2 {[%clk 00:31:58]} {[%emt 00:00:16]} Kd6 {[%clk 00:09:55]}
{[%emt 00:00:12]} 47. b4 {[%clk 00:31:51]} {[%emt 00:00:36]} Ke6 {[%clk
00:10:06]} {[%emt 00:00:19]} 48. Rc5 {[%clk 00:31:59]} {[%emt 00:00:22]} f5
{[%clk 00:10:22]} {[%emt 00:00:14]} 49. Kb3 {[%clk 00:31:01]} {[%emt 00:01:29]}
Rf7 {[%clk 00:09:13]} {[%emt 00:01:38]} 50. b5 {[%clk 00:30:12]} {[%emt
00:01:20]} f4 {[%clk 00:08:54]} {[%emt 00:00:48]} 51. Kb4 {[%clk 00:30:34]}
{[%emt 00:00:08]} fxg3 {[%clk 00:09:08]} {[%emt 00:00:16]} 52. fxg3 {[%clk
00:30:59]} {[%emt 00:00:06]} Kd5 {[%emt 00:04:59]} 1-0

[Event "Schack-SM 2022: Veteran-SM +65"]
[Site "Fyrishov, Idrottsgatan 2, Uppsala, Sweden"]
[Date "2022.07.06"]
[Round "5.3"]
[White "Alquist, Erik"]
[Black "Malmdin, Nils-Ake"]
[Result "1-0"]
[TimeControl "90 minutes for 40 moves + 30 minutes for the rest of the game + 30 seconds per move from move one."]
[BlackTitle "FM"]
[WhiteFideId "1707701"]
[BlackFideId "1701584"]
[WhiteElo "1968"]
[BlackElo "2124"]

1. d4 {[%clk 01:30:52]} {[%emt 00:00:05]} Nf6 {[%clk 01:28:15]} {[%emt
00:02:46]} 2. c4 {[%clk 01:31:14]} {[%emt 00:00:09]} e6 {[%clk 01:27:28]}
{[%emt 00:01:15]} 3. Nf3 {[%clk 01:31:34]} {[%emt 00:00:11]} Bb4+ {[%clk
01:24:09]} {[%emt 00:03:49]} 4. Bd2 {[%clk 01:31:27]} {[%emt 00:00:37]} c5
{[%clk 01:22:06]} {[%emt 00:02:32]} 5. Bxb4 {[%clk 01:31:27]} {[%emt 00:00:31]}
cxb4 {[%clk 01:22:24]} {[%emt 00:00:12]} 6. a3 {[%clk 01:31:49]} {[%emt
00:00:09]} Qa5 {[%clk 01:11:40]} {[%emt 00:11:13]} 7. Nbd2 {[%clk 01:25:02]}
{[%emt 00:07:16]} Na6 {[%clk 01:03:24]} {[%emt 00:08:47]} 8. c5 {[%clk
01:15:57]} {[%emt 00:09:36]} d5 {[%emt 00:01:27]} 9. cxd6 {[%clk 01:15:07]}
{[%emt 00:01:18]} bxa3 {[%clk 00:55:53]} {[%emt 00:07:05]} 10. Rxa3 {[%clk
01:12:26]} {[%emt 00:03:11]} Qb4 {[%clk 00:53:39]} {[%emt 00:02:43]} 11. e4
{[%clk 01:03:05]} {[%emt 00:09:52]} O-O {[%clk 00:52:25]} {[%emt 00:01:45]} 12.
e5 {[%clk 01:00:34]} {[%emt 00:03:01]} Nd5 {[%clk 00:51:45]} {[%emt 00:01:09]}
13. Rb3 {[%clk 00:57:06]} {[%emt 00:03:59]} Qa5 {[%clk 00:52:11]} {[%emt
00:00:04]} 14. Bd3 {[%clk 00:55:39]} {[%emt 00:01:56]} f5 {[%clk 00:52:00]}
{[%emt 00:00:41]} 15. O-O {[%clk 00:54:05]} {[%emt 00:02:04]} Nab4 {[%clk
00:51:34]} {[%emt 00:00:55]} 16. Bb1 {[%clk 00:52:40]} {[%emt 00:01:55]} Qd8
{[%clk 00:50:11]} {[%emt 00:01:53]} 17. Nc4 {[%clk 00:49:10]} {[%emt 00:04:00]}
Bd7 {[%clk 00:49:49]} {[%emt 00:00:51]} 18. Qd2 {[%clk 00:48:47]} {[%emt
00:00:54]} a5 {[%clk 00:49:53]} {[%emt 00:00:27]} 19. Rc1 {[%clk 00:48:04]}
{[%emt 00:01:13]} h6 {[%clk 00:44:14]} {[%emt 00:06:08]} 20. Ne3 {[%clk
00:45:16]} {[%emt 00:03:18]} b6 {[%clk 00:32:35]} {[%emt 00:12:09]} 21. Nxd5
{[%clk 00:44:15]} {[%emt 00:01:31]} Nxd5 {[%clk 00:32:45]} {[%emt 00:00:20]} 22.
Ne1 {[%clk 00:42:04]} {[%emt 00:02:41]} Qg5 {[%clk 00:28:38]} {[%emt 00:04:37]}
23. Qxg5 {[%clk 00:25:37]} {[%emt 00:16:57]} hxg5 {[%clk 00:28:57]} {[%emt
00:00:11]} 24. Rd3 {[%clk 00:24:03]} {[%emt 00:02:04]} Rfc8 {[%clk 00:25:07]}
{[%emt 00:04:20]} 25. Rdd1 {[%clk 00:24:00]} {[%emt 00:00:34]} Ba4 {[%clk
00:22:55]} {[%emt 00:02:40]} 26. Bc2 {[%clk 00:24:09]} {[%emt 00:00:21]} Nf4
{[%clk 00:22:11]} {[%emt 00:01:14]} 27. Bxa4 {[%clk 00:21:08]} {[%emt
00:03:32]} Rxc1 {[%clk 00:21:55]} {[%emt 00:00:45]} 28. Rxc1 {[%clk 00:21:32]}
{[%emt 00:00:05]} Ne2+ {[%clk 00:21:54]} {[%emt 00:00:32]} 29. Kf1 {[%clk
00:21:57]} {[%emt 00:00:05]} Nxc1 {[%clk 00:22:17]} {[%emt 00:00:08]} 30. Nf3
{[%clk 00:22:07]} {[%emt 00:00:20]} b5 {[%clk 00:08:10]} {[%emt 00:14:37]} 31.
Bxb5 {[%clk 00:20:36]} {[%emt 00:02:00]} Rb8 {[%clk 00:07:29]} {[%emt
00:01:12]} 32. Bc4 {[%clk 00:19:57]} {[%emt 00:01:09]} Rxb2 {[%clk 00:06:30]}
{[%emt 00:01:29]} 33. d7 {[%clk 00:20:09]} {[%emt 00:00:18]} Rb8 {[%clk
00:06:43]} {[%emt 00:00:17]} 34. Nxg5 {[%clk 00:20:08]} {[%emt 00:00:31]} Kf8
{[%clk 00:05:08]} {[%emt 00:02:04]} 35. Nxe6+ {[%clk 00:19:16]} {[%emt
00:01:23]} Ke7 {[%clk 00:05:29]} {[%emt 00:00:08]} 36. d8=Q+ {[%clk 00:19:03]}
{[%emt 00:00:44]} Rxd8 {[%clk 00:05:45]} {[%emt 00:00:14]} 37. Nxd8 {[%clk
00:19:30]} {[%emt 00:00:03]} Kxd8 {[%clk 00:06:03]} {[%emt 00:00:12]} 38. Ke1
{[%clk 00:19:35]} {[%emt 00:00:26]} a4 {[%clk 00:06:20]} {[%emt 00:00:13]} 39.
Kd1 {[%clk 00:19:40]} {[%emt 00:00:24]} Nb3 {[%clk 00:06:40]} {[%emt 00:00:11]}
40. Bxb3 {[%clk 00:19:42]} {[%emt 00:00:27]} 1-0

[Event "Schack-SM 2022: Veteran-SM +65"]
[Site "Fyrishov, Idrottsgatan 2, Uppsala, Sweden"]
[Date "2022.07.06"]
[Round "5.4"]
[White "Westin, Ake"]
[Black "Bergstrom, Rolf"]
[Result "1/2-1/2"]
[TimeControl "90 minutes for 40 moves + 30 minutes for the rest of the game + 30 seconds per move from move one."]
[BlackTitle "FM"]
[WhiteFideId "1712888"]
[BlackFideId "1702386"]
[WhiteElo "1994"]
[BlackElo "2202"]

1. f4 {[%clk 01:30:50]} {[%emt 00:00:08]} Nf6 {[%clk 01:29:26]} {[%emt
00:01:34]} 2. Nf3 {[%clk 01:30:42]} {[%emt 00:00:38]} g6 {[%clk 01:29:03]}
{[%emt 00:00:53]} 3. d3 {[%clk 01:28:50]} {[%emt 00:02:22]} d5 {[%clk
01:28:33]} {[%emt 00:01:00]} 4. e3 {[%clk 01:29:06]} {[%emt 00:00:14]} Bg7
{[%clk 01:28:16]} {[%emt 00:00:47]} 5. Be2 {[%clk 01:29:21]} {[%emt 00:00:15]}
O-O {[%clk 01:28:24]} {[%emt 00:00:23]} 6. O-O {[%clk 01:29:19]} {[%emt
00:00:32]} c5 {[%clk 01:24:23]} {[%emt 00:04:30]} 7. Qe1 {[%clk 01:26:11]}
{[%emt 00:03:37]} Nc6 {[%clk 01:23:53]} {[%emt 00:01:01]} 8. a4 {[%clk
01:25:05]} {[%emt 00:01:36]} Qc7 {[%clk 01:18:08]} {[%emt 00:06:16]} 9. Qh4
{[%clk 01:23:14]} {[%emt 00:02:20]} e5 {[%clk 01:14:11]} {[%emt 00:04:28]} 10.
e4 {[%clk 01:20:15]} {[%emt 00:03:28]} dxe4 {[%clk 01:07:32]} {[%emt 00:07:08]}
11. dxe4 {[%clk 01:19:52]} {[%emt 00:00:54]} Bg4 {[%clk 00:52:07]} {[%emt
00:15:55]} 12. f5 {[%clk 01:09:23]} {[%emt 00:10:59]} gxf5 {[%clk 00:38:27]}
{[%emt 00:14:11]} 13. Bh6 {[%clk 00:57:34]} {[%emt 00:12:18]} Bxh6 {[%clk
00:33:18]} {[%emt 00:05:39]} 14. Qxh6 {[%clk 00:56:44]} {[%emt 00:01:20]} Qd6
{[%clk 00:17:44]} {[%emt 00:16:05]} 15. Rd1 {[%clk 00:49:54]} {[%emt 00:07:19]}
Nd4 {[%clk 00:14:20]} {[%emt 00:03:53]} 16. Nxd4 {[%clk 00:37:51]} {[%emt
00:12:34]} Bxe2 {[%clk 00:12:35]} {[%emt 00:02:15]} 17. Rd3 {[%clk 00:37:16]}
{[%emt 00:01:05]} Nxe4 {[%clk 00:09:58]} {[%emt 00:03:07]} 18. Rg3+ {[%clk
00:34:47]} {[%emt 00:02:59]} Bg4 {[%clk 00:10:24]} {[%emt 00:00:04]} 19. Qxd6
{[%clk 00:31:03]} {[%emt 00:04:15]} Nxd6 {[%clk 00:10:48]} {[%emt 00:00:06]} 20.
Nxf5 {[%clk 00:30:30]} {[%emt 00:01:02]} Nxf5 {[%clk 00:11:13]} {[%emt
00:00:05]} 21. Rxg4+ {[%clk 00:30:43]} {[%emt 00:00:17]} Kh8 {[%clk 00:09:50]}
{[%emt 00:01:53]} 22. Nd2 {[%clk 00:28:45]} {[%emt 00:02:28]} f6 {[%clk
00:06:39]} {[%emt 00:03:41]} 23. Ra3 {[%clk 00:25:19]} {[%emt 00:03:55]} Rad8
{[%clk 00:06:00]} {[%emt 00:01:09]} 24. Nc4 {[%clk 00:25:04]} {[%emt 00:00:44]}
Rd4 {[%clk 00:05:14]} {[%emt 00:01:17]} 25. Rxd4 {[%clk 00:24:53]} {[%emt
00:00:41]} Nxd4 {[%clk 00:05:38]} {[%emt 00:00:05]} 26. Nd6 {[%clk 00:23:46]}
{[%emt 00:01:37]} b6 {[%clk 00:04:07]} {[%emt 00:02:01]} 27. c3 {[%clk
00:21:21]} {[%emt 00:02:56]} Nc6 {[%clk 00:04:30]} {[%emt 00:00:07]} 28. Ra1
{[%clk 00:21:33]} {[%emt 00:00:18]} Kg7 {[%clk 00:03:54]} {[%emt 00:01:05]} 29.
g4 {[%clk 00:19:45]} {[%emt 00:02:19]} Rd8 {[%clk 00:04:00]} {[%emt 00:00:23]}
30. Ne4 {[%clk 00:19:49]} {[%emt 00:00:26]} Na5 {[%clk 00:01:44]} {[%emt
00:02:48]} 31. Rf1 {[%clk 00:17:52]} {[%emt 00:02:26]} Nc4 {[%clk 00:02:07]}
{[%emt 00:00:07]} 32. Nxf6 {[%clk 00:17:09]} {[%emt 00:01:13]} Nxb2 {[%clk
00:02:26]} {[%emt 00:00:11]} 33. Nh5+ {[%clk 00:16:32]} {[%emt 00:01:06]} Kg8
{[%clk 00:02:12]} {[%emt 00:00:45]} 34. Rf5 {[%clk 00:15:02]} {[%emt 00:02:00]}
Nd3 {[%clk 00:01:32]} {[%emt 00:01:10]} 35. Nf6+ {[%clk 00:14:00]} {[%emt
00:01:29]} Kg7 {[%clk 00:01:40]} {[%emt 00:00:25]} 36. Nh5+ {[%clk 00:13:38]}
{[%emt 00:00:52]} Kg8 {[%clk 00:01:54]} {[%emt 00:00:16]} 37. Nf6+ {[%clk
00:13:42]} {[%emt 00:00:26]} Kg7 {[%clk 00:00:48]} {[%emt 00:01:36]} 1/2-1/2